[Event "Early-Titled-Tuesday-Blitz-February-06-2024"]
[Site "Chess.com"]
[Date "2024.02.06"]
[Round "1"]
[White "Bilan_Danila"]
[Black "NCchamp"]
[Result "1-0"]
[WhiteElo "2615"]
[BlackElo "2281"]
[TimeControl "180+1"]
[EndTime "8:08:03 PST"]
[Termination "Bilan_Danila won on time"]

1. d4 {[%clk 0:03:00.9]} 1... d5 {[%clk 0:02:59.2]} 2. Nf3 {[%clk 0:03:00.2]}
2... Nf6 {[%clk 0:02:58.8]} 3. c4 {[%clk 0:02:59.4]} 3... dxc4 {[%clk
0:02:58.8]} 4. e3 {[%clk 0:02:59.1]} 4... a6 {[%clk 0:02:59.2]} 5. Bxc4 {[%clk
0:02:58.6]} 5... Bg4 {[%clk 0:02:25]} 6. Bxf7+ {[%clk 0:02:24.1]} 6... Kxf7
{[%clk 0:02:24.8]} 7. Ne5+ {[%clk 0:02:24.3]} 7... Ke8 {[%clk 0:02:19.5]} 8.
Nxg4 {[%clk 0:02:23.2]} 8... Nxg4 {[%clk 0:02:19.9]} 9. Qxg4 {[%clk 0:02:23.7]}
9... Qd5 {[%clk 0:02:19.4]} 10. Nc3 {[%clk 0:02:18.6]} 10... Qd7 {[%clk
0:02:15.9]} 11. Qe4 {[%clk 0:02:00.1]} 11... c6 {[%clk 0:02:11]} 12. O-O {[%clk
0:01:56.7]} 12... e6 {[%clk 0:02:10.5]} 13. Na4 {[%clk 0:01:50.7]} 13... Qf7
{[%clk 0:02:04.6]} 14. Bd2 {[%clk 0:01:38.6]} 14... Nd7 {[%clk 0:01:55.6]} 15.
f4 {[%clk 0:01:29.2]} 15... Bd6 {[%clk 0:01:43.3]} 16. f5 {[%clk 0:01:23.6]}
16... e5 {[%clk 0:01:43.3]} 17. dxe5 {[%clk 0:01:11.9]} 17... Bxe5 {[%clk
0:01:41.3]} 18. Bc3 {[%clk 0:01:10.9]} 18... Qe7 {[%clk 0:01:40.6]} 19. Bxe5
{[%clk 0:01:03.8]} 19... Qxe5 {[%clk 0:01:38.4]} 20. Qxe5+ {[%clk 0:00:50.6]}
20... Nxe5 {[%clk 0:01:39.3]} 21. Nc5 {[%clk 0:00:50.9]} 21... Ke7 {[%clk
0:01:26.6]} 22. b3 {[%clk 0:00:41.2]} 22... b6 {[%clk 0:01:22.6]} 23. Ne6 {[%clk
0:00:39]} 23... g6 {[%clk 0:01:22.5]} 24. e4 {[%clk 0:00:37.6]} 24... gxf5
{[%clk 0:01:05.5]} 25. exf5 {[%clk 0:00:37.8]} 25... Kf6 {[%clk 0:01:05.7]} 26.
Rad1 {[%clk 0:00:34.7]} 26... Rhg8 {[%clk 0:01:02]} 27. Nd4 {[%clk 0:00:28.6]}
27... Rac8 {[%clk 0:00:49.8]} 28. Nf3 {[%clk 0:00:24.7]} 28... Rgd8 {[%clk
0:00:39.8]} 29. Nxe5 {[%clk 0:00:23.4]} 29... Kxe5 {[%clk 0:00:31.4]} 30. Rde1+
{[%clk 0:00:19.2]} 30... Kd6 {[%clk 0:00:26.6]} 31. f6 {[%clk 0:00:18.2]} 31...
Rf8 {[%clk 0:00:25.2]} 32. Rf3 {[%clk 0:00:13]} 32... Rc7 {[%clk 0:00:23.8]} 33.
b4 {[%clk 0:00:11.8]} 33... Rcf7 {[%clk 0:00:22.5]} 34. Ref1 {[%clk 0:00:11.8]}
34... c5 {[%clk 0:00:17.4]} 35. bxc5+ {[%clk 0:00:11.4]} 35... bxc5 {[%clk
0:00:17.3]} 36. g4 {[%clk 0:00:12]} 36... c4 {[%clk 0:00:16.3]} 37. g5 {[%clk
0:00:12.2]} 37... Rg8 {[%clk 0:00:14.7]} 38. h4 {[%clk 0:00:12.1]} 38... h6
{[%clk 0:00:14.9]} 39. Rf5 {[%clk 0:00:12.6]} 39... hxg5 {[%clk 0:00:15]} 40.
hxg5 {[%clk 0:00:13.5]} 40... Rh7 {[%clk 0:00:07.1]} 41. Kg2 {[%clk 0:00:12.7]}
41... Ke6 {[%clk 0:00:02.6]} 42. f7 {[%clk 0:00:10.7]} 42... Rf8 {[%clk
0:00:02.7]} 43. g6 {[%clk 0:00:11.3]} 43... Rg7 {[%clk 0:00:03.3]} 44. Rf6+
{[%clk 0:00:11.9]} 44... Ke7 {[%clk 0:00:03.7]} 45. Kg3 {[%clk 0:00:11.5]} 45...
c3 {[%clk 0:00:03.7]} 46. Kg4 {[%clk 0:00:10.4]} 46... c2 {[%clk 0:00:04.2]} 47.
Kg5 {[%clk 0:00:10.7]} 47... c1=Q+ {[%clk 0:00:01.5]} 48. Rxc1 {[%clk
0:00:10.5]} 1-0

[Event "Early-Titled-Tuesday-Blitz-February-06-2024"]
[Site "Chess.com"]
[Date "2024.02.06"]
[Round "1"]
[White "N4700000"]
[Black "AlexPapasimakopoulos"]
[Result "0-1"]
[WhiteElo "2420"]
[BlackElo "2755"]
[TimeControl "180+1"]
[EndTime "8:08:04 PST"]
[Termination "AlexPapasimakopoulos won by resignation"]

1. e4 {[%clk 0:03:00.9]} 1... e6 {[%clk 0:02:54.9]} 2. Nf3 {[%clk 0:02:58.2]}
2... d5 {[%clk 0:02:50.6]} 3. e5 {[%clk 0:02:58.2]} 3... c5 {[%clk 0:02:49.2]}
4. b4 {[%clk 0:02:57.8]} 4... c4 {[%clk 0:02:48.6]} 5. c3 {[%clk 0:02:49.6]}
5... a5 {[%clk 0:02:45.4]} 6. b5 {[%clk 0:02:45.8]} 6... Nd7 {[%clk 0:02:45.8]}
7. d4 {[%clk 0:02:44]} 7... cxd3 {[%clk 0:02:45.7]} 8. Bxd3 {[%clk 0:02:44.9]}
8... Ne7 {[%clk 0:02:45.9]} 9. O-O {[%clk 0:02:43.8]} 9... Nc5 {[%clk 0:02:46]}
10. Bc2 {[%clk 0:02:40.9]} 10... b6 {[%clk 0:02:46.5]} 11. Nd4 {[%clk 0:02:30]}
11... Bb7 {[%clk 0:02:33.9]} 12. Nd2 {[%clk 0:02:20.3]} 12... Rc8 {[%clk
0:02:33.6]} 13. Qe2 {[%clk 0:02:15.4]} 13... Qc7 {[%clk 0:02:25.7]} 14. Ba3
{[%clk 0:01:43.8]} 14... g6 {[%clk 0:02:19.8]} 15. Rac1 {[%clk 0:01:41.3]} 15...
Bg7 {[%clk 0:02:18.8]} 16. f4 {[%clk 0:01:36.8]} 16... O-O {[%clk 0:02:18.7]}
17. g4 {[%clk 0:01:27.2]} 17... Rfd8 {[%clk 0:02:17.6]} 18. Rf3 {[%clk
0:01:11.8]} 18... Ne4 {[%clk 0:02:13.7]} 19. Nxe4 {[%clk 0:01:04.5]} 19... dxe4
{[%clk 0:02:14]} 20. Bxe4 {[%clk 0:01:03.4]} 20... Bxe4 {[%clk 0:02:11.2]} 21.
Qxe4 {[%clk 0:01:03.4]} 21... Bf8 {[%clk 0:01:54.5]} 22. c4 {[%clk 0:00:50.3]}
22... Qd7 {[%clk 0:01:46.6]} 23. Bd6 {[%clk 0:00:40.3]} 23... Kh8 {[%clk
0:01:39.9]} 24. Rh3 {[%clk 0:00:35.8]} 24... Ng8 {[%clk 0:01:37.6]} 25. Nc6
{[%clk 0:00:31.7]} 25... Bxd6 {[%clk 0:01:37.6]} 26. exd6 {[%clk 0:00:26.8]}
26... Qxd6 {[%clk 0:01:35.8]} 27. Nxd8 {[%clk 0:00:25.6]} 27... Rxd8 {[%clk
0:01:28.3]} 28. Qe5+ {[%clk 0:00:25.4]} 28... Qxe5 {[%clk 0:01:28.6]} 29. fxe5
{[%clk 0:00:26.3]} 29... Ne7 {[%clk 0:01:26.4]} 30. c5 {[%clk 0:00:24.8]} 30...
bxc5 {[%clk 0:01:26.6]} 31. Rxc5 {[%clk 0:00:24.9]} 31... Rb8 {[%clk 0:01:23.3]}
32. Rhc3 {[%clk 0:00:21.7]} 32... Kg7 {[%clk 0:01:21.8]} 33. a4 {[%clk
0:00:20.6]} 33... Nd5 {[%clk 0:01:21.9]} 34. R3c4 {[%clk 0:00:20.8]} 34... Nb6
{[%clk 0:01:22.1]} 35. Rd4 {[%clk 0:00:20.4]} 35... Rb7 {[%clk 0:01:20.8]} 36.
Rc6 {[%clk 0:00:20.2]} 36... g5 {[%clk 0:01:16.9]} 37. Rd8 {[%clk 0:00:19.5]}
37... Nxa4 {[%clk 0:01:15.8]} 38. Rcc8 {[%clk 0:00:15.7]} 38... Rxb5 {[%clk
0:01:15.6]} 39. Rg8+ {[%clk 0:00:15.7]} 39... Kh6 {[%clk 0:01:15.9]} 40. Rc4
{[%clk 0:00:14.6]} 40... Rb4 {[%clk 0:01:07.8]} 41. Rxb4 {[%clk 0:00:13]} 41...
axb4 {[%clk 0:01:08.7]} 42. Rb8 {[%clk 0:00:13.1]} 42... Nc5 {[%clk 0:01:07.8]}
43. Rxb4 {[%clk 0:00:13.6]} 43... Nd3 {[%clk 0:01:08]} 44. Rb5 {[%clk
0:00:13.9]} 44... Kg6 {[%clk 0:01:07.1]} 45. Kg2 {[%clk 0:00:14]} 45... h5
{[%clk 0:01:06.8]} 46. h3 {[%clk 0:00:13.8]} 46... Nf4+ {[%clk 0:01:07.1]} 47.
Kg3 {[%clk 0:00:13.9]} 47... h4+ {[%clk 0:01:07.7]} 48. Kh2 {[%clk 0:00:14.2]}
48... Kg7 {[%clk 0:01:02.3]} 49. Rc5 {[%clk 0:00:13.6]} 49... Kg6 {[%clk
0:00:59.7]} 50. Rb5 {[%clk 0:00:13.7]} 50... f5 {[%clk 0:00:59.6]} 51. exf6
{[%clk 0:00:13.4]} 51... Kxf6 {[%clk 0:01:00.1]} 52. Ra5 {[%clk 0:00:13.1]}
52... e5 {[%clk 0:01:00.3]} 53. Ra6+ {[%clk 0:00:12.8]} 53... Ke7 {[%clk
0:01:00.2]} 54. Rb6 {[%clk 0:00:11.1]} 54... Kf7 {[%clk 0:00:58.7]} 55. Ra6
{[%clk 0:00:11]} 55... e4 {[%clk 0:00:58.4]} 56. Ra4 {[%clk 0:00:10.5]} 56... e3
{[%clk 0:00:58.6]} 57. Re4 {[%clk 0:00:10.6]} 57... e2 {[%clk 0:00:58.2]} 58.
Kg1 {[%clk 0:00:10.1]} 58... Nxh3+ {[%clk 0:00:56]} 59. Kg2 {[%clk 0:00:10.4]}
59... Nf4+ {[%clk 0:00:56.6]} 60. Kf3 {[%clk 0:00:10.7]} 60... Kf6 {[%clk
0:00:56.3]} 61. Kf2 {[%clk 0:00:10.7]} 61... h3 {[%clk 0:00:51.2]} 62. Re8
{[%clk 0:00:10.5]} 62... Kf7 {[%clk 0:00:49.5]} 63. Rh8 {[%clk 0:00:10.1]} 63...
Ke6 {[%clk 0:00:48.3]} 64. Rg8 {[%clk 0:00:09]} 64... Kd6 {[%clk 0:00:45.8]} 65.
Rxg5 {[%clk 0:00:08.1]} 65... h2 {[%clk 0:00:45.7]} 66. Rh5 {[%clk 0:00:04.9]}
66... Nxh5 {[%clk 0:00:45.7]} 67. gxh5 {[%clk 0:00:04.9]} 67... h1=Q {[%clk
0:00:45.2]} 0-1

[Event "Early-Titled-Tuesday-Blitz-February-06-2024"]
[Site "Chess.com"]
[Date "2024.02.06"]
[Round "1"]
[White "Orest_Vovk"]
[Black "Capiberibe"]
[Result "1-0"]
[WhiteElo "2558"]
[BlackElo "2089"]
[TimeControl "180+1"]
[EndTime "8:08:04 PST"]
[Termination "Orest_Vovk won on time"]

1. h4 {[%clk 0:02:59.6]} 1... d5 {[%clk 0:02:57.3]} 2. h5 {[%clk 0:02:59.9]}
2... e5 {[%clk 0:02:55.8]} 3. h6 {[%clk 0:03:00.1]} 3... Nxh6 {[%clk 0:02:55.7]}
4. d4 {[%clk 0:03:00.6]} 4... e4 {[%clk 0:02:48.1]} 5. Bxh6 {[%clk 0:03:01.2]}
5... gxh6 {[%clk 0:02:47.3]} 6. e3 {[%clk 0:03:02.1]} 6... Bg7 {[%clk
0:02:44.6]} 7. c4 {[%clk 0:03:02.3]} 7... c6 {[%clk 0:02:44.1]} 8. Nc3 {[%clk
0:03:02.5]} 8... Be6 {[%clk 0:02:43.6]} 9. Qb3 {[%clk 0:03:02.3]} 9... Qb6
{[%clk 0:02:40.5]} 10. Nh3 {[%clk 0:02:51.6]} 10... Qxb3 {[%clk 0:02:39.8]} 11.
axb3 {[%clk 0:02:51.1]} 11... Nd7 {[%clk 0:02:33.9]} 12. Nf4 {[%clk 0:02:50.9]}
12... Nf6 {[%clk 0:02:33.6]} 13. cxd5 {[%clk 0:02:49]} 13... cxd5 {[%clk
0:02:31]} 14. Bb5+ {[%clk 0:02:36.2]} 14... Ke7 {[%clk 0:02:30.5]} 15. Be2
{[%clk 0:02:25.9]} 15... a6 {[%clk 0:02:27.8]} 16. Ra5 {[%clk 0:02:20.3]} 16...
Rhd8 {[%clk 0:02:20.6]} 17. Nh5 {[%clk 0:02:16.9]} 17... Nxh5 {[%clk 0:02:16.2]}
18. Rxh5 {[%clk 0:02:17.8]} 18... f5 {[%clk 0:02:12.1]} 19. g3 {[%clk
0:02:10.1]} 19... Rac8 {[%clk 0:02:10.6]} 20. Kd2 {[%clk 0:02:07.2]} 20... Kd6
{[%clk 0:02:01.4]} 21. b4 {[%clk 0:01:43.8]} 21... Rc6 {[%clk 0:01:43]} 22. Rc5
{[%clk 0:01:40.1]} 22... Rxc5 {[%clk 0:01:39.4]} 23. bxc5+ {[%clk 0:01:37.9]}
23... Ke7 {[%clk 0:01:34.4]} 24. b4 {[%clk 0:01:37.6]} 24... Rb8 {[%clk
0:01:25.4]} 25. Bd1 {[%clk 0:01:22.8]} 25... Kf6 {[%clk 0:01:22.6]} 26. g4
{[%clk 0:01:17.8]} 26... Rd8 {[%clk 0:01:01.5]} 27. gxf5 {[%clk 0:01:05.7]}
27... Bxf5 {[%clk 0:01:01.4]} 28. Bb3 {[%clk 0:01:05.7]} 28... Kg6 {[%clk
0:00:41.8]} 29. Rxf5 {[%clk 0:00:52.6]} 29... Kxf5 {[%clk 0:00:39.7]} 30. Bxd5
{[%clk 0:00:53.2]} 30... Rd7 {[%clk 0:00:27.4]} 31. Bxe4+ {[%clk 0:00:52.3]}
31... Kg4 {[%clk 0:00:27.4]} 32. f3+ {[%clk 0:00:42.9]} 32... Kg3 {[%clk
0:00:24.2]} 33. Ne2+ {[%clk 0:00:43]} 33... Kf2 {[%clk 0:00:22.7]} 34. Kd3
{[%clk 0:00:30.6]} 34... h5 {[%clk 0:00:21.1]} 35. Nf4 {[%clk 0:00:27.1]} 35...
h4 {[%clk 0:00:20.5]} 36. Ne6 {[%clk 0:00:20.5]} 36... h3 {[%clk 0:00:17.1]} 37.
f4 {[%clk 0:00:19.7]} 37... h2 {[%clk 0:00:16.7]} 38. d5 {[%clk 0:00:19.9]}
38... Re7 {[%clk 0:00:16.8]} 39. f5 {[%clk 0:00:18.7]} 39... Be5 {[%clk
0:00:15.9]} 40. d6 {[%clk 0:00:10]} 40... Rf7 {[%clk 0:00:15.7]} 41. Ng5 {[%clk
0:00:08.8]} 41... Rg7 {[%clk 0:00:14.6]} 42. Ne6 {[%clk 0:00:08.6]} 42... Rg4
{[%clk 0:00:14.4]} 43. Bxb7 {[%clk 0:00:05.9]} 43... Rg2 {[%clk 0:00:11.7]} 44.
Bxg2 {[%clk 0:00:04.6]} 44... Kxg2 {[%clk 0:00:11.9]} 45. d7 {[%clk 0:00:05.1]}
45... Bf6 {[%clk 0:00:10.7]} 46. d8=Q {[%clk 0:00:04]} 46... Kg3 {[%clk
0:00:10.5]} 47. Qd6+ {[%clk 0:00:03.3]} 47... Be5 {[%clk 0:00:09.5]} 48. Qd5
{[%clk 0:00:04.2]} 48... h1=Q {[%clk 0:00:09]} 49. Qxh1 {[%clk 0:00:04.1]} 1-0

[Event "Early-Titled-Tuesday-Blitz-February-06-2024"]
[Site "Chess.com"]
[Date "2024.02.06"]
[Round "1"]
[White "Mourinho_Jose"]
[Black "Alex_Sahakyan2006"]
[Result "0-1"]
[WhiteElo "2491"]
[BlackElo "2892"]
[TimeControl "180+1"]
[EndTime "8:08:06 PST"]
[Termination "Alex_Sahakyan2006 won on time"]

1. e4 {[%clk 0:03:00.9]} 1... e5 {[%clk 0:02:59.6]} 2. Nf3 {[%clk 0:03:00.7]}
2... Nc6 {[%clk 0:03:00.3]} 3. Nc3 {[%clk 0:02:58.1]} 3... Nf6 {[%clk
0:03:00.3]} 4. d4 {[%clk 0:02:57.7]} 4... Bb4 {[%clk 0:03:00.1]} 5. Nxe5 {[%clk
0:02:57.3]} 5... O-O {[%clk 0:02:59.4]} 6. Nxc6 {[%clk 0:02:33.2]} 6... dxc6
{[%clk 0:02:59.3]} 7. e5 {[%clk 0:02:33.8]} 7... Ne4 {[%clk 0:02:59.1]} 8. Qd3
{[%clk 0:02:34]} 8... Bf5 {[%clk 0:02:57.9]} 9. Bd2 {[%clk 0:02:10]} 9... Nxd2
{[%clk 0:01:45.2]} 10. Qxd2 {[%clk 0:01:52.7]} 10... f6 {[%clk 0:01:16]} 11.
Bc4+ {[%clk 0:01:38.5]} 11... Kh8 {[%clk 0:01:15.7]} 12. O-O-O {[%clk
0:01:38.9]} 12... fxe5 {[%clk 0:01:11.7]} 13. dxe5 {[%clk 0:01:39.2]} 13... Qh4
{[%clk 0:01:11]} 14. f4 {[%clk 0:01:05.6]} 14... Rad8 {[%clk 0:01:02]} 15. Qe3
{[%clk 0:01:01]} 15... b5 {[%clk 0:00:56]} 16. g3 {[%clk 0:00:45.1]} 16... Qe7
{[%clk 0:00:55]} 17. Be2 {[%clk 0:00:08.8]} 17... Bc5 {[%clk 0:00:50.6]} 18. Qf3
{[%clk 0:00:07.4]} 18... Be6 {[%clk 0:00:46.5]} 19. Kb1 {[%clk 0:00:07.2]} 19...
b4 {[%clk 0:00:45.8]} 20. Ne4 {[%clk 0:00:07.4]} 20... Bd5 {[%clk 0:00:46.5]}
21. Bd3 {[%clk 0:00:08]} 21... Bd4 {[%clk 0:00:46.1]} 22. Qh5 {[%clk 0:00:07.9]}
22... g6 {[%clk 0:00:46.3]} 23. Qh3 {[%clk 0:00:07.3]} 23... c5 {[%clk
0:00:46.8]} 24. Ng5 {[%clk 0:00:07.3]} 24... Bxh1 {[%clk 0:00:37.3]} 25. Bxg6
{[%clk 0:00:05.7]} 25... Bxe5 {[%clk 0:00:38]} 26. Rxh1 {[%clk 0:00:05.1]} 26...
Qd7 {[%clk 0:00:31.4]} 27. Qxd7 {[%clk 0:00:03]} 27... Rxd7 {[%clk 0:00:32]} 28.
fxe5 {[%clk 0:00:03.9]} 28... hxg6 {[%clk 0:00:32.4]} 29. b3 {[%clk 0:00:03.5]}
29... Rf5 {[%clk 0:00:30.8]} 30. e6 {[%clk 0:00:02.7]} 30... Rd2 {[%clk
0:00:27.9]} 31. Nf7+ {[%clk 0:00:03.6]} 31... Kg7 {[%clk 0:00:27.3]} 32. Re1
{[%clk 0:00:03.7]} 32... Rxf7 {[%clk 0:00:04.9]} 33. exf7 {[%clk 0:00:03.9]}
33... Kxf7 {[%clk 0:00:05.8]} 34. Rf1+ {[%clk 0:00:04.3]} 34... Ke6 {[%clk
0:00:06.1]} 35. h4 {[%clk 0:00:04.2]} 35... Rg2 {[%clk 0:00:05.5]} 36. Rf3
{[%clk 0:00:04.8]} 36... Kd5 {[%clk 0:00:06]} 37. Rd3+ {[%clk 0:00:04.2]} 37...
Kc6 {[%clk 0:00:03.3]} 38. Kb2 {[%clk 0:00:04.4]} 38... Kb5 {[%clk 0:00:03.8]}
39. Rf3 {[%clk 0:00:04.9]} 39... c4 {[%clk 0:00:03.9]} 40. bxc4+ {[%clk
0:00:04.9]} 40... Kxc4 {[%clk 0:00:04.1]} 41. Rf4+ {[%clk 0:00:05.6]} 41... Kb5
{[%clk 0:00:04.8]} 42. Rg4 {[%clk 0:00:06.5]} 42... c5 {[%clk 0:00:05.4]} 43.
Rxg6 {[%clk 0:00:06]} 43... a5 {[%clk 0:00:06.1]} 44. h5 {[%clk 0:00:04.9]}
44... a4 {[%clk 0:00:06.7]} 45. a3 {[%clk 0:00:04.6]} 45... b3 {[%clk
0:00:05.8]} 46. h6 {[%clk 0:00:05.2]} 46... Rxc2+ {[%clk 0:00:06.1]} 47. Kb1
{[%clk 0:00:05.9]} 47... Rh2 {[%clk 0:00:07]} 48. g4 {[%clk 0:00:01.7]} 48...
Kc4 {[%clk 0:00:07.4]} 49. g5 {[%clk 0:00:02.5]} 49... Kc3 {[%clk 0:00:07.9]}
0-1

[Event "Early-Titled-Tuesday-Blitz-February-06-2024"]
[Site "Chess.com"]
[Date "2024.02.06"]
[Round "1"]
[White "Fandorine"]
[Black "korkmaz16"]
[Result "1-0"]
[WhiteElo "2964"]
[BlackElo "2505"]
[TimeControl "180+1"]
[EndTime "8:08:10 PST"]
[Termination "Fandorine won by resignation"]

1. Nf3 {[%clk 0:02:40.4]} 1... d5 {[%clk 0:02:56.9]} 2. g3 {[%clk 0:02:39.8]}
2... g6 {[%clk 0:02:56.3]} 3. Bg2 {[%clk 0:02:39.3]} 3... Bg7 {[%clk 0:02:55.2]}
4. O-O {[%clk 0:02:39.2]} 4... e5 {[%clk 0:02:54]} 5. d3 {[%clk 0:02:38.8]} 5...
Nc6 {[%clk 0:02:50.7]} 6. e4 {[%clk 0:02:36.2]} 6... dxe4 {[%clk 0:02:38.6]} 7.
dxe4 {[%clk 0:02:33.9]} 7... Qxd1 {[%clk 0:02:31.6]} 8. Rxd1 {[%clk 0:02:34.3]}
8... Bg4 {[%clk 0:02:30.1]} 9. c3 {[%clk 0:02:33.3]} 9... Rd8 {[%clk 0:02:07.9]}
10. Re1 {[%clk 0:02:25.3]} 10... Nge7 {[%clk 0:01:38.1]} 11. Be3 {[%clk
0:02:20]} 11... O-O {[%clk 0:01:32.4]} 12. Nbd2 {[%clk 0:02:17.6]} 12... h6
{[%clk 0:01:25.9]} 13. a4 {[%clk 0:02:14.5]} 13... Rd7 {[%clk 0:01:25.2]} 14. a5
{[%clk 0:02:11.3]} 14... a6 {[%clk 0:01:24.2]} 15. Nb3 {[%clk 0:02:08.7]} 15...
Rdd8 {[%clk 0:01:10.8]} 16. Nc5 {[%clk 0:01:48.7]} 16... Rb8 {[%clk 0:01:08.6]}
17. h3 {[%clk 0:01:46.5]} 17... Bc8 {[%clk 0:01:07.2]} 18. Red1 {[%clk
0:01:45.4]} 18... Rd8 {[%clk 0:01:03.2]} 19. b4 {[%clk 0:01:35.3]} 19... Kf8
{[%clk 0:00:51.3]} 20. Nd2 {[%clk 0:01:24.9]} 20... Ke8 {[%clk 0:00:42.1]} 21.
Nc4 {[%clk 0:01:15.2]} 21... Be6 {[%clk 0:00:37.2]} 22. Nxe6 {[%clk 0:01:11.4]}
22... fxe6 {[%clk 0:00:36.7]} 23. h4 {[%clk 0:01:11]} 23... Rxd1+ {[%clk
0:00:34]} 24. Rxd1 {[%clk 0:01:09.9]} 24... Rd8 {[%clk 0:00:34.6]} 25. Rxd8+
{[%clk 0:01:08.6]} 25... Nxd8 {[%clk 0:00:34.7]} 26. Bh3 {[%clk 0:01:04.4]}
26... Kd7 {[%clk 0:00:32.1]} 27. Kf1 {[%clk 0:01:03.7]} 27... Ndc6 {[%clk
0:00:26.5]} 28. Nb2 {[%clk 0:01:02.2]} 28... Nc8 {[%clk 0:00:25.1]} 29. Nd3
{[%clk 0:00:58.2]} 29... b6 {[%clk 0:00:23.5]} 30. Ke2 {[%clk 0:00:44.1]} 30...
bxa5 {[%clk 0:00:23.3]} 31. Nc5+ {[%clk 0:00:42]} 31... Ke7 {[%clk 0:00:20.2]}
32. bxa5 {[%clk 0:00:36.6]} 32... Nxa5 {[%clk 0:00:17.8]} 33. Bxe6 {[%clk
0:00:34.2]} 33... Nd6 {[%clk 0:00:16.3]} 34. Ba2 {[%clk 0:00:34.2]} 34... Nac4
{[%clk 0:00:16.3]} 35. Bxc4 {[%clk 0:00:31.6]} 35... Nxc4 {[%clk 0:00:16.8]} 36.
Nxa6 {[%clk 0:00:30.8]} 36... Kd6 {[%clk 0:00:16.9]} 37. Kd3 {[%clk 0:00:27.7]}
37... Nb6 {[%clk 0:00:15.8]} 38. Bxb6 {[%clk 0:00:23.9]} 38... cxb6 {[%clk
0:00:15.6]} 39. Kc4 {[%clk 0:00:23.6]} 39... Kc6 {[%clk 0:00:15.7]} 40. Nb4+
{[%clk 0:00:22.9]} 40... Kd6 {[%clk 0:00:15.3]} 41. Kb5 {[%clk 0:00:22]} 41...
g5 {[%clk 0:00:15.2]} 42. hxg5 {[%clk 0:00:21.2]} 42... hxg5 {[%clk 0:00:16.1]}
43. g4 {[%clk 0:00:19.8]} 43... Kc7 {[%clk 0:00:14.7]} 44. Nd5+ {[%clk
0:00:19.1]} 44... Kd6 {[%clk 0:00:15.2]} 45. Nxb6 {[%clk 0:00:18.6]} 45... Bf8
{[%clk 0:00:15.7]} 46. Nc4+ {[%clk 0:00:17.9]} 46... Ke6 {[%clk 0:00:15.6]} 47.
f3 {[%clk 0:00:17.9]} 47... Be7 {[%clk 0:00:14.2]} 48. Kc6 {[%clk 0:00:18.2]}
48... Bf8 {[%clk 0:00:13.2]} 49. Ne3 {[%clk 0:00:17.9]} 49... Ba3 {[%clk
0:00:12.5]} 50. c4 {[%clk 0:00:18.1]} 50... Bb2 {[%clk 0:00:12.7]} 51. Nd5
{[%clk 0:00:18.4]} 51... Bd4 {[%clk 0:00:13.6]} 52. c5 {[%clk 0:00:17.5]} 1-0

[Event "Early-Titled-Tuesday-Blitz-February-06-2024"]
[Site "Chess.com"]
[Date "2024.02.06"]
[Round "1"]
[White "Grindaveci"]
[Black "Sattarov_Bobur"]
[Result "1/2-1/2"]
[WhiteElo "2430"]
[BlackElo "2752"]
[TimeControl "180+1"]
[EndTime "8:08:12 PST"]
[Termination "Game drawn by repetition"]

1. e4 {[%clk 0:02:59.7]} 1... e5 {[%clk 0:02:59.6]} 2. Nf3 {[%clk 0:02:59.4]}
2... Nc6 {[%clk 0:03:00.3]} 3. Bc4 {[%clk 0:02:59.9]} 3... Bc5 {[%clk
0:02:59.7]} 4. c3 {[%clk 0:02:59.9]} 4... Qf6 {[%clk 0:02:59.7]} 5. d4 {[%clk
0:02:58.6]} 5... exd4 {[%clk 0:03:00.6]} 6. e5 {[%clk 0:02:59.2]} 6... Qg6
{[%clk 0:03:00.6]} 7. cxd4 {[%clk 0:02:55.2]} 7... Bb4+ {[%clk 0:03:00.8]} 8.
Nc3 {[%clk 0:02:53.3]} 8... Nge7 {[%clk 0:03:00.1]} 9. O-O {[%clk 0:02:52.3]}
9... Bxc3 {[%clk 0:02:56.5]} 10. bxc3 {[%clk 0:02:52.2]} 10... d5 {[%clk
0:02:56.6]} 11. exd6 {[%clk 0:02:46.4]} 11... Qxd6 {[%clk 0:02:50.4]} 12. a4
{[%clk 0:02:33.2]} 12... O-O {[%clk 0:02:48.4]} 13. Ba3 {[%clk 0:02:30.9]} 13...
Qf6 {[%clk 0:02:48.4]} 14. d5 {[%clk 0:02:24.3]} 14... Rd8 {[%clk 0:02:48.3]}
15. Qe2 {[%clk 0:02:18.4]} 15... Bg4 {[%clk 0:02:33.4]} 16. dxc6 {[%clk
0:02:17.9]} 16... Nxc6 {[%clk 0:02:34.3]} 17. Qe4 {[%clk 0:02:08.6]} 17... Bh5
{[%clk 0:01:57.8]} 18. Nd4 {[%clk 0:01:56.6]} 18... Nxd4 {[%clk 0:01:31.7]} 19.
cxd4 {[%clk 0:01:55.9]} 19... Rxd4 {[%clk 0:01:32.6]} 20. Qxb7 {[%clk
0:01:56.1]} 20... Qd8 {[%clk 0:01:33.1]} 21. Rac1 {[%clk 0:01:39.9]} 21... Rb8
{[%clk 0:01:26.5]} 22. Qxa7 {[%clk 0:01:38]} 22... Ra8 {[%clk 0:01:26.5]} 23.
Qc5 {[%clk 0:01:34.4]} 23... Bg6 {[%clk 0:01:10.4]} 24. a5 {[%clk 0:01:27.8]}
24... h5 {[%clk 0:01:07.5]} 25. a6 {[%clk 0:01:27.2]} 25... h4 {[%clk 0:01:05]}
26. Bb2 {[%clk 0:01:22.7]} 26... Rg4 {[%clk 0:01:01]} 27. h3 {[%clk 0:01:15.3]}
27... Rg5 {[%clk 0:01:00.3]} 28. Qd4 {[%clk 0:01:15.9]} 28... Qf8 {[%clk
0:00:55.3]} 29. a7 {[%clk 0:01:09.4]} 29... c5 {[%clk 0:00:25.7]} 30. Qd7 {[%clk
0:01:07.1]} 30... Bf5 {[%clk 0:00:23.4]} 31. Qb7 {[%clk 0:01:01.2]} 31... Bxh3
{[%clk 0:00:22.5]} 32. Bd5 {[%clk 0:00:53.5]} 32... Bxg2 {[%clk 0:00:19.3]} 33.
Bxg2 {[%clk 0:00:18.8]} 33... h3 {[%clk 0:00:19.9]} 34. Kh2 {[%clk 0:00:17.6]}
34... Rxg2+ {[%clk 0:00:18.2]} 35. Kh1 {[%clk 0:00:18.2]} 35... Rxa7 {[%clk
0:00:14.6]} 36. Qxa7 {[%clk 0:00:17.1]} 36... Qd6 {[%clk 0:00:15.1]} 37. f4
{[%clk 0:00:16.8]} 37... Qd2 {[%clk 0:00:14.6]} 38. Qa8+ {[%clk 0:00:12.6]}
38... Kh7 {[%clk 0:00:14.6]} 39. Qe4+ {[%clk 0:00:12.6]} 39... g6 {[%clk
0:00:14.6]} 40. Qf3 {[%clk 0:00:07.6]} 40... Rh2+ {[%clk 0:00:14.4]} 41. Kg1
{[%clk 0:00:07.7]} 41... Rg2+ {[%clk 0:00:15]} 42. Kh1 {[%clk 0:00:08.2]} 42...
Rh2+ {[%clk 0:00:14.4]} 43. Kg1 {[%clk 0:00:08.4]} 43... Qxb2 {[%clk 0:00:08.6]}
44. Rb1 {[%clk 0:00:04.1]} 44... Qc2 {[%clk 0:00:07.2]} 45. Rbc1 {[%clk
0:00:04.1]} 45... Qd2 {[%clk 0:00:06.8]} 46. Rcd1 {[%clk 0:00:04]} 46... Rg2+
{[%clk 0:00:06.5]} 47. Kh1 {[%clk 0:00:04.1]} 47... Rh2+ {[%clk 0:00:07.4]} 48.
Kg1 {[%clk 0:00:04.5]} 48... Qa2 {[%clk 0:00:07.8]} 49. Ra1 {[%clk 0:00:03.1]}
49... Qb2 {[%clk 0:00:07]} 50. Rab1 {[%clk 0:00:03.7]} 50... Rg2+ {[%clk
0:00:07.1]} 51. Kh1 {[%clk 0:00:04.1]} 51... Rh2+ {[%clk 0:00:08]} 52. Kg1
{[%clk 0:00:04.7]} 1/2-1/2